fUSD/lending_fUSD_20240531
["ID","MTS","AMOUNT","RATE_DAILY","PERIOD"]
[328323971,1717164654551,-500.0,0.00032876,11]
[328323972,1717164654560,-500.0,0.00032876,11]
[328323973,1717164654569,-500.0,0.00032876,11]
[328323974,1717164654578,-500.0,0.00032876,11]
[328323975,1717164654587,-502.22283706,0.00032876,11]
[328323976,1717164654597,-500.0,0.00032876,11]
[328323977,1717164654606,-609.31,0.00032876,11]
[328323978,1717164654616,-500.0,0.00032876,11]
[328323979,1717164654625,-500.0,0.00032876,11]
[328323980,1717164654634,-609.31,0.00032876,11]
[328323981,1717164654643,-500.0,0.00032876,11]
[328323982,1717164654652,-609.31,0.00032876,11]
[328323983,1717164654661,-500.0,0.00032876,11]
[328323984,1717164654670,-233.32,0.00032876,11]
[328323985,1717164654680,-609.31,0.00032876,11]
[328323986,1717164654689,-500.0,0.00032876,11]
[328323987,1717164654700,-609.31,0.00032876,11]
[328323988,1717164654710,-500.0,0.00032876,11]
[328323989,1717164654719,-500.0,0.00032876,11]
[328323990,1717164654727,-609.31,0.00032876,11]
[328323991,1717164654737,-500.0,0.00032876,11]
[328323992,1717164654746,-500.0,0.00032876,11]
[328323993,1717164654756,-500.0,0.00032876,11]
[328323994,1717164654765,-500.0,0.00032876,11]
[328323995,1717164654774,-255.71309437,0.00032876,11]
[328323996,1717164654783,-500.0,0.00032876,11]
[328323997,1717164654792,-500.0,0.00032876,11]
[328323998,1717164654801,-500.0,0.00032876,11]
[328323999,1717164654811,-500.0,0.00032876,11]
[328324000,1717164654950,-500.0,0.00032876,11]
[328324001,1717164654960,-500.0,0.00032876,11]
[328324002,1717164654969,-421.26,0.00032876,11]
[328324003,1717164654978,-500.0,0.00032876,11]
[328324004,1717164654987,-500.0,0.00032876,11]
[328324005,1717164654996,-500.0,0.00032876,11]
[328324006,1717164655005,-500.0,0.00032876,11]
[328324007,1717164655019,-500.0,0.00032876,11]
[328324008,1717164655028,-500.0,0.00032876,11]
[328324009,1717164655038,-500.0,0.00032876,11]
[328324010,1717164655047,-500.0,0.00032876,11]
[328324011,1717164655058,-500.0,0.00032876,11]
[328324012,1717164655067,-500.0,0.00032876,11]
[328324013,1717164655076,-500.0,0.00032876,11]
[328324014,1717164655085,-500.0,0.00032876,11]
[328324015,1717164655097,-508.58168292,0.00032876,11]
[328324016,1717164655106,-500.0,0.00032876,11]
[328324017,1717164655115,-500.0,0.00032876,11]
[328324018,1717164655125,-500.0,0.00032876,11]
[328324019,1717164655134,-500.0,0.00032876,11]
[328324020,1717164655143,-500.0,0.00032876,11]
[328324021,1717164655152,-500.0,0.00032876,11]
[328324022,1717164655161,-500.0,0.00032876,11]
[328324023,1717164655170,-500.0,0.00032876,11]
[328324024,1717164655180,-500.0,0.00032876,11]
[328324025,1717164655189,-500.0,0.00032876,11]
[328324026,1717164655200,-500.0,0.00032876,11]
[328324027,1717164655209,-500.0,0.00032876,11]
[328324028,1717164655218,-500.0,0.00032876,11]
[328324029,1717164655227,-500.0,0.00032876,11]
[328324030,1717164655236,-500.0,0.00032876,11]
[328324031,1717164655245,-500.0,0.00032876,11]
[328324032,1717164655254,-500.0,0.00032876,11]
[328324033,1717164655264,-500.0,0.00032876,11]
[328324034,1717164655273,-500.0,0.00032876,11]
[328324035,1717164655282,-500.0,0.00032876,11]
[328324036,1717164655292,-500.0,0.00032876,11]
[328324037,1717164655301,-500.0,0.00032876,11]
[328324038,1717164655310,-918.16,0.00032876,11]
[328324039,1717164655319,-918.16,0.00032876,11]
[328324040,1717164655328,-918.16,0.00032876,11]
[328324041,1717164655338,-876.59,0.00032876,11]
[328324042,1717164655348,-918.16,0.00032876,11]
[328324043,1717164655357,-876.59,0.00032876,11]
[328324044,1717164655366,-918.16,0.00032876,11]
[328324045,1717164655375,-876.59,0.00032876,11]
[328324046,1717164655385,-876.59,0.00032876,11]
[328324047,1717164655394,-918.16,0.00032876,11]
[328324048,1717164655403,-876.59,0.00032876,11]
[328324049,1717164655413,-151.0,0.00032877,7]
[328324050,1717164655422,-6003.80375,0.00032877,7]
[328324051,1717164655432,-6003.80375,0.00032877,7]
[328324052,1717164655441,-500.0,0.00032877,3]
[328324053,1717164655452,-500.0,0.00032882,3]
[328324054,1717164655461,-522.61,0.00032886,11]
[328324055,1717164655470,-500.0,0.00032886,11]
[328324056,1717164655479,-500.0,0.00032886,3]
[328324057,1717164655488,-500.0,0.00032887,11]
[328324058,1717164655497,-500.0,0.00032887,11]
[328324059,1717164655506,-856.62,0.00032887,11]
[328324060,1717164655515,-500.0,0.00032887,11]
[328324061,1717164655525,-637.93211022,0.00032887,11]
[328324062,1717164655534,-500.0,0.00032887,11]
[328324063,1717164655543,-500.0,0.00032887,11]
[328324064,1717164655553,-500.0,0.00032887,11]
[328324065,1717164655561,-730.09,0.00032887,11]
[328324066,1717164655571,-500.0,0.00032887,11]
[328324067,1717164655580,-1387.62,0.00032887,11]
[328324068,1717164655589,-500.0,0.00032887,11]
[328324069,1717164655599,-500.0,0.00032887,11]
[328324070,1717164655608,-500.0,0.00032887,11]
[328324071,1717164655617,-500.0,0.00032887,11]
[328324072,1717164655627,-386.9,0.00032887,11]
[328324073,1717164655636,-500.0,0.00032887,11]
[328324074,1717164655645,-249.85034078,0.00032887,11]
[328324075,1717164655655,-500.0,0.00032887,11]
[328324076,1717164655664,-500.0,0.00032887,11]
[328324077,1717164655673,-876.59,0.00032887,11]
[328324078,1717164655683,-506.12,0.00032888,11]
[328324079,1717164655692,-500.0,0.00032888,11]
[328324080,1717164655703,-500.0,0.00032888,11]
[328324081,1717164655712,-500.0,0.00032888,11]
[328324082,1717164655721,-545.60401211,0.00032888,11]
[328324083,1717164655730,-515.93155464,0.00032888,11]
[328324084,1717164655741,-856.62,0.00032888,11]
[328324085,1717164655752,-471.16844848,0.00032888,11]
[328324086,1717164655763,-500.0,0.00032888,11]
[328324087,1717164655772,-500.0,0.00032888,11]
[328324088,1717164655781,-500.0,0.00032888,11]
[328324089,1717164655792,-858.16,0.00032888,11]
[328324090,1717164655802,-500.0,0.00032888,11]
[328324091,1717164655813,-509.11,0.00032888,11]
[328324092,1717164655824,-500.0,0.00032888,11]
[328324093,1717164655833,-500.0,0.00032888,11]
[328324094,1717164655843,-500.0,0.00032888,11]
[328324095,1717164655852,-500.0,0.00032888,11]
[328324096,1717164655861,-568.25,0.00032888,11]
[328324097,1717164655870,-508.89867814,0.00032888,11]
[328324098,1717164655880,-254.5,0.00032888,2]
[328324099,1717164655890,-254.5,0.00032888,2]
[328324100,1717164655899,-254.5,0.00032888,2]
[328324101,1717164655910,-254.5,0.00032888,2]
[328324102,1717164655919,-463.35373976,0.00032888,11]
[328324103,1717164655929,-500.0,0.00032888,11]
[328324104,1717164655940,-500.0,0.00032888,11]
[328324105,1717164655950,-500.0,0.00032888,11]
[328324106,1717164655959,-739.07,0.00032888,11]
[328324107,1717164655968,-500.0,0.00032888,11]
[328324108,1717164655977,-500.0,0.00032888,11]
[328324109,1717164655986,-500.0,0.00032888,11]
[328324110,1717164655995,-526.94,0.00032888,11]
[328324111,1717164656005,-236.1546357,0.00032888,11]
[328324112,1717164656019,-543.32,0.00032888,11]
[328324113,1717164656028,-500.0,0.00032888,11]
[328324114,1717164656038,-442.69,0.00032888,11]
[328324115,1717164656048,-500.0,0.00032888,11]
[328324116,1717164656058,-500.0,0.00032888,11]
[328324117,1717164656067,-500.0,0.00032888,11]
[328324118,1717164656076,-311.71,0.00032888,11]
[328324119,1717164656086,-556.39476703,0.00032888,11]
[328324120,1717164656095,-522.02,0.00032888,11]
[328324121,1717164656107,-500.0,0.00032888,11]
[328324122,1717164656117,-500.0,0.00032888,11]
[328324123,1717164656127,-500.0,0.00032888,11]
[328324124,1717164656136,-500.0,0.00032888,11]
[328324125,1717164656146,-500.0,0.00032888,11]
[328324126,1717164656155,-500.0,0.00032888,11]
[328324127,1717164656164,-500.0,0.00032888,11]
[328324128,1717164656174,-500.0,0.00032888,11]
[328324129,1717164656183,-731.47,0.00032888,11]
[328324130,1717164656191,-391.44,0.00032888,11]
[328324131,1717164656202,-1609.89,0.00032888,11]
[328324132,1717164656211,-601.23,0.00032888,11]
[328324133,1717164656220,-500.0,0.00032888,11]
[328324134,1717164656229,-500.0,0.00032888,11]
[328324135,1717164656238,-500.0,0.00032888,11]
[328324136,1717164656247,-500.0,0.00032888,11]
[328324137,1717164656256,-500.0,0.00032888,11]
[328324138,1717164656265,-1030.39,0.00032888,2]
[328324139,1717164656274,-1070.04,0.00032888,11]
[328324140,1717164656283,-500.0,0.00032888,11]
[328324141,1717164656293,-500.0,0.00032888,11]
[328324142,1717164656302,-655.37,0.00032888,11]
[328324143,1717164656312,-500.0,0.00032888,11]
[328324144,1717164656321,-500.0,0.00032888,11]
[328324145,1717164656330,-500.0,0.00032888,11]
[328324146,1717164656340,-151.0,0.00032888,7]
[328324147,1717164656349,-609.31,0.00032888,11]
[328324148,1717164656358,-500.0,0.00032888,11]
[328324149,1717164656367,-500.0,0.00032888,11]
[328324150,1717164656376,-918.16,0.00032888,11]
[328324151,1717164656385,-151.0,0.00032888,7]
[328324152,1717164656395,-500.0,0.00032889,11]
[328324153,1717164656404,-500.0,0.00032889,11]
[328324154,1717164656413,-500.0,0.00032889,11]
[328324155,1717164656422,-500.0,0.00032889,11]
[328324156,1717164656431,-500.0,0.00032889,11]
[328324157,1717164656441,-500.0,0.00032889,11]
[328324158,1717164656451,-500.0,0.00032889,11]
[328324159,1717164656460,-500.0,0.00032889,11]
[328324160,1717164656469,-500.0,0.00032889,11]
[328324161,1717164656479,-856.62,0.00032889,11]
[328324162,1717164656489,-856.62,0.00032889,11]
[328324163,1717164656499,-856.62,0.00032889,11]
[328324164,1717164656509,-500.0,0.00032889,11]
[328324165,1717164656519,-500.0,0.00032889,11]
[328324166,1717164656530,-500.0,0.00032889,11]
[328324167,1717164656539,-203.75,0.00032889,11]
[328324168,1717164656549,-500.0,0.00032889,11]
[328324169,1717164656559,-500.0,0.00032889,11]
[328324170,1717164656568,-500.0,0.00032889,11]
[328324171,1717164656578,-858.16,0.00032889,11]
[328324172,1717164656587,-858.16,0.00032889,11]
[328324173,1717164656595,-858.16,0.00032889,11]
[328324174,1717164656604,-500.0,0.00032889,11]
[328324175,1717164656613,-500.0,0.00032889,11]
[328324176,1717164656622,-500.0,0.00032889,11]
[328324177,1717164656631,-509.11,0.00032889,11]
[328324178,1717164656641,-509.11,0.00032889,11]
[328324179,1717164656650,-509.11,0.00032889,11]
[328324180,1717164656659,-500.0,0.00032889,11]
[328324181,1717164656668,-500.0,0.00032889,11]
[328324182,1717164656676,-500.0,0.00032889,11]
[328324183,1717164656685,-500.0,0.00032889,11]
[328324184,1717164656694,-500.0,0.00032889,11]
[328324185,1717164656705,-514.24404646,0.00032889,11]
[328324186,1717164656714,-500.0,0.00032889,11]
[328324187,1717164656723,-500.0,0.00032889,11]
[328324188,1717164656732,-500.0,0.00032889,11]
[328324189,1717164656742,-500.0,0.00032889,11]
[328324190,1717164656751,-500.0,0.00032889,11]
[328324191,1717164656760,-481.18,0.00032889,11]
[328324192,1717164656769,-568.25,0.00032889,11]
[328324193,1717164656779,-568.25,0.00032889,11]
[328324194,1717164656787,-568.25,0.00032889,11]
[328324195,1717164656796,-550.49331962,0.00032889,11]
[328324196,1717164656805,-500.0,0.00032889,11]
[328324197,1717164656814,-500.0,0.00032889,11]
[328324198,1717164656823,-500.0,0.00032889,11]
[328324199,1717164656832,-522.61,0.00032889,11]
[328324200,1717164656842,-522.61,0.00032889,11]
[328324201,1717164656851,-344.57874413,0.00032889,11]
[328324202,1717164656861,-522.61,0.00032889,11]
[328324203,1717164656869,-522.61,0.00032889,11]
[328324204,1717164656879,-739.07,0.00032889,11]
[328324205,1717164656888,-739.07,0.00032889,11]
[328324206,1717164656897,-739.07,0.00032889,11]
[328324207,1717164656906,-500.0,0.00032889,11]
[328324208,1717164656916,-500.0,0.00032889,11]
[328324209,1717164656925,-500.0,0.00032889,11]
[328324210,1717164656934,-605.24438626,0.00032889,11]
[328324211,1717164656943,-487.64,0.00032889,11]
[328324212,1717164656954,-500.0,0.00032889,11]
[328324213,1717164656962,-500.0,0.00032889,11]
[328324214,1717164656971,-500.0,0.00032889,11]
[328324215,1717164656980,-500.0,0.00032889,11]
[328324216,1717164656989,-500.0,0.00032889,11]
[328324217,1717164656998,-500.0,0.00032889,11]
[328324218,1717164657008,-500.0,0.00032889,11]
[328324219,1717164657018,-526.94,0.00032889,11]
[328324220,1717164657030,-526.94,0.00032889,11]
[328324221,1717164657040,-526.94,0.00032889,11]
[328324222,1717164657049,-543.32,0.00032889,11]
[328324223,1717164657058,-543.32,0.00032889,11]
[328324224,1717164657068,-543.32,0.00032889,11]
[328324225,1717164657077,-500.0,0.00032889,11]
[328324226,1717164657086,-500.0,0.00032889,11]
[328324227,1717164657095,-500.0,0.00032889,11]
[328324228,1717164657105,-500.0,0.00032889,11]
[328324229,1717164657115,-500.0,0.00032889,11]
[328324230,1717164657124,-500.0,0.00032889,11]
[328324231,1717164657133,-500.0,0.00032889,11]
[328324232,1717164657143,-250.34,0.00032889,11]
[328324233,1717164657152,-500.0,0.00032889,11]
[328324234,1717164657161,-500.0,0.00032889,11]
[328324235,1717164657170,-522.02,0.00032889,11]
[328324236,1717164657179,-522.02,0.00032889,11]
[328324237,1717164657188,-522.02,0.00032889,11]
[328324238,1717164657197,-500.0,0.00032889,11]
[328324239,1717164657208,-500.0,0.00032889,11]
[328324240,1717164657217,-500.0,0.00032889,11]
[328324241,1717164657225,-500.0,0.00032889,11]
[328324242,1717164657234,-500.0,0.00032889,11]
[328324243,1717164657243,-500.0,0.00032889,11]
[328324244,1717164657252,-500.0,0.00032889,11]
[328324245,1717164657262,-598.33013607,0.00032889,11]
[328324246,1717164657272,-500.0,0.00032889,11]
[328324247,1717164657281,-500.0,0.00032889,11]
[328324248,1717164657290,-500.0,0.00032889,11]
[328324249,1717164657299,-372.9,0.00032889,11]
[328324250,1717164657309,-421.00536536,0.00032889,11]
[328324251,1717164657318,-500.0,0.00032889,11]
[328324252,1717164657327,-500.0,0.00032889,11]
[328324253,1717164657336,-500.0,0.00032889,11]
[328324254,1717164657345,-431.40877521,0.00032889,11]
[328324255,1717164657354,-731.47,0.00032889,11]
[328324256,1717164657363,-731.47,0.00032889,11]
[328324257,1717164657372,-731.47,0.00032889,11]
[328324258,1717164657381,-500.0,0.00032889,11]
[328324259,1717164657390,-500.0,0.00032889,11]
[328324260,1717164657399,-500.0,0.00032889,11]
[328324261,1717164657408,-500.0,0.00032889,11]
[328324262,1717164657418,-730.09,0.00032889,11]
[328324263,1717164657427,-730.09,0.00032889,11]
[328324264,1717164657436,-730.09,0.00032889,11]
[328324265,1717164657445,-730.09,0.00032889,11]
[328324266,1717164657455,-601.23,0.00032889,11]
[328324267,1717164657464,-1609.89,0.00032889,11]
[328324268,1717164657474,-1609.89,0.00032889,11]
[328324269,1717164657484,-601.23,0.00032889,11]
[328324270,1717164657493,-1609.89,0.00032889,11]
[328324271,1717164657503,-601.23,0.00032889,11]
[328324272,1717164657513,-500.0,0.00032889,11]
[328324273,1717164657522,-500.0,0.00032889,11]
[328324274,1717164657531,-500.0,0.00032889,11]
[328324275,1717164657540,-500.0,0.00032889,11]
[328324276,1717164657549,-500.0,0.00032889,11]
[328324277,1717164657558,-500.0,0.00032889,11]
[328324278,1717164657567,-500.0,0.00032889,11]
[328324279,1717164657576,-500.0,0.00032889,11]
[328324280,1717164657585,-205.39524245,0.00032889,11]
[328324281,1717164657594,-500.0,0.00032889,11]
[328324282,1717164657603,-500.0,0.00032889,11]
[328324283,1717164657613,-336.63337668,0.00032889,11]
[328324284,1717164657845,-163.36662332,0.00032889,11]
[328324285,1717164657856,-1387.62,0.00032889,11]
[328324286,1717164657867,-1387.62,0.00032889,11]
[328324287,1717164657876,-500.0,0.00032889,11]
[328324288,1717164657886,-500.0,0.00032889,11]
[328324289,1717164657895,-1387.62,0.00032889,11]
[328324290,1717164657904,-500.0,0.00032889,11]
[328324291,1717164657913,-1387.62,0.00032889,11]
[328324292,1717164657921,-500.0,0.00032889,11]
[328324293,1717164657931,-1030.39,0.00032889,2]
[328324294,1717164657940,-500.0,0.00032889,11]
[328324295,1717164657949,-1030.39,0.00032889,2]
[328324296,1717164657958,-214.66,0.00032889,11]
[328324297,1717164657967,-1030.39,0.00032889,2]
[328324298,1717164657977,-1070.04,0.00032889,11]
[328324299,1717164657987,-1070.04,0.00032889,11]
[328324300,1717164657996,-1070.04,0.00032889,11]
[328324301,1717164658005,-402.64,0.00032889,11]
[328324302,1717164658020,-233.42888316,0.00032889,11]
[328324303,1717164658029,-500.0,0.00032889,11]
[328324304,1717164658038,-500.0,0.00032889,11]
[328324305,1717164658047,-500.0,0.00032889,11]
[328324306,1717164658058,-655.37,0.00032889,11]
[328324307,1717164658067,-655.37,0.00032889,11]
[328324308,1717164658076,-655.37,0.00032889,11]
[328324309,1717164658085,-294.07502067,0.00032889,11]
[328324310,1717164658094,-209.39439188,0.00032889,11]
[328324311,1717164658103,-500.0,0.00032889,11]
[328324312,1717164658113,-500.0,0.00032889,11]
[328324313,1717164658122,-500.0,0.00032889,11]
[328324314,1717164658131,-327.77948663,0.00032889,11]
[328324315,1717164658140,-500.0,0.00032889,11]
[328324316,1717164658149,-500.0,0.00032889,11]
[328324317,1717164658158,-500.0,0.00032889,11]
[328324318,1717164658167,-500.0,0.00032889,11]
[328324319,1717164658177,-399.39089636,0.00032889,11]
[328324320,1717164658186,-500.0,0.00032889,11]
[328324321,1717164658195,-500.0,0.00032889,11]
[328324322,1717164658207,-500.0,0.00032889,11]
[328324323,1717164658216,-500.0,0.00032889,11]
[328324324,1717164658226,-609.31,0.00032889,11]
[328324325,1717164658235,-609.31,0.00032889,11]
[328324326,1717164658244,-609.31,0.00032889,11]
[328324327,1717164658253,-500.0,0.00032889,11]
[328324328,1717164658262,-500.0,0.00032889,11]
[328324329,1717164658271,-500.0,0.00032889,11]
[328324330,1717164658280,-500.0,0.00032889,11]
[328324331,1717164658289,-500.0,0.00032889,11]
[328324332,1717164658298,-500.0,0.00032889,11]
[328324333,1717164658308,-500.0,0.00032889,11]
[328324334,1717164658317,-500.0,0.00032889,11]
[328324335,1717164658327,-500.0,0.00032889,11]
[328324336,1717164658336,-500.0,0.00032889,11]
[328324337,1717164658345,-500.0,0.00032889,11]
[328324338,1717164658355,-500.0,0.00032889,11]
[328324339,1717164658364,-500.0,0.00032889,11]
[328324340,1717164658373,-500.0,0.00032889,11]
[328324341,1717164658383,-500.0,0.00032889,11]
[328324342,1717164658393,-500.0,0.00032889,11]
[328324343,1717164658401,-500.0,0.00032889,11]
[328324344,1717164658411,-500.0,0.00032889,11]
[328324345,1717164658420,-918.16,0.00032889,11]
[328324346,1717164658429,-876.59,0.00032889,11]
[328324347,1717164658438,-876.59,0.00032889,11]
[328324348,1717164658447,-918.16,0.00032889,11]
[328324349,1717164658458,-876.59,0.00032889,11]
[328324350,1717164658467,-918.16,0.00032889,11]
[328324351,1717164658476,-129931.49769798,0.0003289,2]
[328324352,1717164658488,-168781.05584591,0.0003289,2]
[328324353,1717164658499,-16965.24999999,0.0003289,2]
[328324354,1717164658510,-1881.29601957,0.0003289,2]
[328324355,1717164658521,-1700.45,0.0003289,2]
[328324356,1717164658532,-408.127272,0.0003289,2]
[328324357,1717164889556,181.13,0.00030781,120]
[328324358,1717164890962,166.75,0.0003064,120]
[328324359,1717165100355,6026.73,0.00027208,60]
[328324360,1717165545948,-542.00347646,0.00016724,2]
[328324361,1717165545967,-361.9806066,0.00016725,2]
[328324362,1717165545986,-444.22571044,0.00016726,2]
[328324375,1717165832339,-1126.80000001,0.00016668,2]
[328324376,1717165832351,-319.5176318,0.00016668,2]
[328324377,1717165832362,-744.22359317,0.00016668,2]
[328324378,1717165832371,-342.90975169,0.00016671,2]
[328324379,1717165832381,-1482.98800667,0.00016722,2]
[328324380,1717165832392,-940.14892551,0.00016724,2]
[328324381,1717165832403,-198.18867319,0.00016725,2]
[328324382,1717165832413,-410.31583376,0.00016726,2]
[328324383,1717165832423,-436834.92338182,0.00016726,2]
[328324384,1717165832435,-3421.26789501,0.00016726,2]
[328324385,1717165832445,-1358.33124,0.00016726,2]
[328324386,1717165832574,-683.08007594,0.00016726,2]
[328324387,1717165832585,-1247.964,0.00016726,2]
[328324388,1717165832596,-12688.63619916,0.00016726,2]
[328324416,1717165838372,-783.15448036,0.0001667,2]
[328324417,1717165838382,-92011.79360793,0.00016726,2]
[328324418,1717165838393,-188.8986228,0.00016726,2]
[328324419,1717165838407,-4841.40156946,0.0001697,2]
[328324420,1717165838416,-19749.44622392,0.00016972,2]
[328324421,1717165838427,-801.87,0.0001726,2]
[328324422,1717165838437,-150.99,0.0001726,2]
[328324423,1717165838446,-908.93,0.0001726,2]
[328324424,1717165838456,-150.99,0.00017808,2]
[328324425,1717165838465,-499.99,0.00019452,2]
[328324426,1717165838475,-4865.94,0.00019726,2]
[328324427,1717165838489,-620.0,0.000203,2]
[328324428,1717165838499,-167.97,0.00021941,2]
[328324429,1717165838508,-156.04,0.0002198,2]
[328324430,1717165838518,-200.0,0.00023023,2]
[328324431,1717165838527,-943.46,0.00023058,2]
[328324432,1717165838536,-1000.0,0.00023092,2]
[328324433,1717165838546,-23890.0,0.00023094,2]
[328324434,1717165838556,-250.0,0.00023116,2]
[328324435,1717165838565,-150.0,0.00023131,2]
[328324436,1717165838575,-158.8,0.00023969,2]
[328324437,1717165838584,-500.0,0.00024099,2]
[328324438,1717165838594,-158.8,0.00024125,2]
[328324439,1717165838603,-158.8,0.00024281,2]
[328324440,1717165838613,-3081.26,0.00024341,2]
[328324441,1717165838623,-157.43,0.00024384,2]
[328324442,1717165838633,-160.97,0.00024384,2]
[328324443,1717165838643,-158.8,0.00024437,2]
[328324444,1717165838654,-158.8,0.00024594,2]
[328324445,1717165838664,-996.003,0.00024594,2]
[328324446,1717165838673,-200.0,0.0002461,2]
[328324447,1717165838683,-158.8,0.0002475,2]
[328324448,1717165838692,-1768.20822924,0.00024799,2]
[328324449,1717165838702,-158.8,0.00024906,2]
[328324450,1717165838712,-158.8,0.00025062,2]
[328324451,1717165838722,-158.8,0.00025218,2]
[328324452,1717165838732,-394.64,0.00025593,2]
[328324453,1717165838741,-2163.11819766,0.00027108,2]
[328324454,1717165838751,-171.2,0.00027259,2]
[328324455,1717165838761,-250.0,0.0002748,2]
[328324456,1717165838770,-3338.47,0.00027487,2]
[328324457,1717165838780,-737.8,0.00027526,2]
[328324458,1717165838789,-1402.22,0.00027693,2]
[328324459,1717165838799,-2163.11819766,0.00027785,2]
[328324460,1717165838808,-394.64,0.00027857,2]
[328324461,1717165838818,-2163.11819766,0.00028462,2]
[328324462,1717165838828,-235.291,0.0002867,2]
[328324463,1717165838838,-1493.4,0.0002867,2]
[328324464,1717165838848,-37953.0,0.0002867,2]
[328324465,1717165838858,-1272.139,0.0002867,2]
[328324466,1717165838868,-2163.11819766,0.00029139,2]
[328324467,1717165838878,-282.1196435,0.0002927,2]
[328324468,1717165838888,-2163.11819766,0.00029816,2]
[328324469,1717165838898,-3043.85558057,0.00029968,2]
[328324470,1717165838911,-1118.01036006,0.00029968,2]
[328324471,1717165838921,-394.64,0.00030121,2]
[328324472,1717165838930,-1402.22,0.00030433,2]
[328324473,1717165838941,-2163.11819766,0.00030492,10]
[328324474,1717165838951,-3440.3735,0.0003054,2]
[328324475,1717165838960,-737.8,0.00030966,2]
[328324476,1717165838970,-155.28,0.00031017,2]
[328324477,1717165838980,-155.28,0.00031039,2]
[328324478,1717165838989,-150.66714897,0.0003104,7]
[328324479,1717165838999,-155.28,0.00031061,2]
[328324481,1717165839008,-155.28,0.00031084,2]
[328324483,1717165839019,-150.66714897,0.00031092,7]
[328324484,1717165839028,-155.28,0.00031106,2]
[328324486,1717165839038,-155.28,0.00031128,2]
[328324488,1717165839048,-155.28,0.0003115,2]
[328324490,1717165839058,-2163.11819766,0.00031169,10]
[328324492,1717165839069,-155.28,0.00031172,2]
[328324495,1717165839079,-150.05942182,0.00031391,7]
[328324498,1717165839089,-166.55343035,0.00031408,7]
[328324500,1717165839100,-153.25751709,0.00031436,7]
[328324502,1717165839110,-152.56637886,0.00031563,7]
[328324504,1717165839120,-2163.11819766,0.00031846,10]
[328324506,1717165839130,-400.0,0.000319,11]
[328324508,1717165839140,-800.0,0.00032,11]
[328324510,1717165839150,-1300.0,0.000321,11]
[328324512,1717165839160,-152.56637886,0.00032146,7]
[328324514,1717165839173,-2607.73794193,0.00032169,4]
[328324516,1717165839185,-507.64563123,0.000322,11]
[328324519,1717165839206,-606.06170181,0.000322,11]
[328324522,1717165839223,-586.29266696,0.000322,11]
[328324524,1717165839233,-155.27407181,0.00032271,7]
[328324526,1717165839244,-2200.0,0.000323,11]
[328324527,1717165839254,-416.3,0.00032329,2]
[328324529,1717165839265,-394.64,0.00032385,2]
[328324531,1717165839275,-400.0,0.000324,11]
[328324533,1717165839285,-160.61,0.00032453,10]
[328324535,1717165839295,-12886.88326223,0.00032463,7]
[328324536,1717165839307,-3083.11673777,0.00032463,7]
[328324538,1717165839317,-234.09,0.00032466,2]
[328324540,1717165839328,-154.38,0.00032466,2]